bitfinex/quotes_BTCUSD_20241226
["timestamp","ask_amount","ask_price","bid_price","bid_amount"]
[1735171975801,0.25398632,99822.0,99821.0,0.0001718]
[1735171976396,0.27698632,99822.0,99821.0,0.0001718]
[1735171977567,0.27898632,99822.0,99821.0,0.0001718]
[1735171977801,0.25598632,99822.0,99821.0,0.0001718]
[1735171978018,0.2846927,99822.0,99821.0,0.0001718]
[1735171978442,0.2856927,99822.0,99821.0,0.0001718]
[1735171979773,0.2846927,99822.0,99821.0,0.0001718]
[1735171979979,0.2856927,99822.0,99821.0,0.0001718]
[1735171980405,0.2846927,99822.0,99821.0,0.0001718]
[1735171980647,0.2856927,99822.0,99821.0,0.0001718]
[1735171981080,0.2846927,99822.0,99821.0,0.0001718]
[1735171981266,0.160274,99829.0,99821.0,0.0001718]
[1735171981475,0.160283,99824.0,99821.0,0.0001718]
[1735171981661,0.160283,99824.0,99822.0,0.00483092]
[1735171982225,0.320566,99824.0,99821.0,0.0001718]
[1735171982433,0.320566,99824.0,99821.0,0.0011718]
[1735171982635,0.33123876,99824.0,99821.0,0.02009094]
[1735171983055,0.16042176,99834.0,99821.0,0.02009094]
[1735171983261,0.00015576,99834.0,99827.0,0.01891914]
[1735171983668,0.00015576,99834.0,99828.0,0.00436407]
[1735171985680,0.00015576,99834.0,99828.0,0.02328321]
[1735171985846,0.160267,99833.0,99828.0,0.02328321]
[1735171986050,0.00115576,99834.0,99828.0,0.02328321]
[1735171986586,0.00015576,99834.0,99828.0,0.00436407]
[1735171987089,0.00015576,99834.0,99830.0,0.01891914]
[1735171987505,0.00015576,99834.0,99831.0,0.00434843]
[1735171988978,0.00115576,99834.0,99831.0,0.00434843]
[1735171989599,0.00015576,99834.0,99832.0,0.01891914]
[1735171990000,0.00015576,99834.0,99833.0,0.00426454]
[1735171990400,0.160267,99833.0,99832.0,0.01891914]
[1735171990622,0.160267,99833.0,99831.0,0.004]
[1735171991230,0.160267,99833.0,99832.0,0.00426448]
[1735171991564,0.160267,99833.0,99831.0,0.002]
[1735171991907,0.160267,99833.0,99832.0,0.02818362]
[1735171992110,0.160267,99833.0,99832.0,0.01891914]
[1735171992933,0.00015576,99834.0,99812.0,0.01891914]
[1735171993137,0.160283,99823.0,99816.0,0.01891914]
[1735171994657,0.160283,99823.0,99817.0,0.01891914]
[1735171995258,0.01079205,99829.0,99817.0,0.01891914]
[1735171995460,0.160279,99826.0,99820.0,0.01891914]
[1735171995666,0.320558,99826.0,99820.0,0.01891914]
[1735171996242,0.160273,99830.0,99820.0,0.01891914]
[1735171996476,0.160273,99830.0,99820.0,0.11356681]
[1735171996716,0.16028,99825.0,99822.0,0.0031716]
[1735171996893,0.01106473,99834.0,99823.0,0.00430069]
[1735171997590,0.160275,99828.0,99823.0,0.00430069]
[1735171997798,0.320551,99828.0,99823.0,0.00430069]
[1735171998174,0.320551,99828.0,99823.0,0.02321983]
[1735171998976,0.160275,99828.0,99823.0,0.02321983]
[1735171999199,0.160267,99833.0,99824.0,0.01891914]
[1735171999411,0.00024166,99834.0,99830.0,0.01891914]
[1735171999825,0.00024166,99834.0,99833.0,0.01891914]
[1735172000208,0.00024166,99834.0,99833.0,0.02322776]
[1735172001241,0.00024166,99834.0,99833.0,0.12322776]
[1735172002284,0.00124166,99834.0,99833.0,0.12322776]
[1735172002692,0.00024166,99834.0,99833.0,0.12322776]
[1735172002901,0.00024166,99834.0,99833.0,0.28206655]
[1735172003110,0.00024166,99834.0,99833.0,0.28006655]
[1735172004313,0.00024166,99834.0,99833.0,0.27806655]
[1735172004517,0.00024166,99834.0,99833.0,0.28606655]
[1735172004679,0.00024166,99834.0,99833.0,0.28006655]
[1735172004877,0.00024166,99834.0,99833.0,0.18006655]
[1735172005084,0.00024166,99834.0,99833.0,0.10882776]
[1735172005278,0.00024166,99834.0,99833.0,0.10682776]
[1735172005478,0.00024166,99834.0,99833.0,0.18606655]
[1735172005887,0.00024166,99834.0,99833.0,0.17806655]
[1735172006088,0.00024166,99834.0,99833.0,0.18006655]
[1735172006929,0.00024166,99834.0,99833.0,0.18406655]
[1735172008085,0.00024166,99834.0,99833.0,0.17806655]
[1735172008278,0.00024166,99834.0,99833.0,0.17906655]
[1735172008427,0.00024166,99834.0,99833.0,0.18106655]
[1735172008872,0.00024166,99834.0,99833.0,0.18006655]
[1735172009128,0.00024166,99834.0,99833.0,0.18106655]
[1735172010160,0.00024166,99834.0,99833.0,0.38605455]
[1735172010363,0.00024166,99834.0,99833.0,0.38505287]
[1735172011135,0.00024166,99834.0,99833.0,0.38205287]
[1735172011274,0.00024166,99834.0,99833.0,0.38305287]
[1735172011480,0.00024166,99834.0,99833.0,0.38505287]
[1735172011673,0.00024166,99834.0,99833.0,0.38305287]
[1735172011877,0.00024166,99834.0,99833.0,0.27906655]
[1735172012083,0.00024166,99834.0,99833.0,0.20582776]
[1735172012752,0.00024166,99834.0,99833.0,0.20782776]
[1735172014427,0.13718329,99847.0,99842.0,0.01891914]
[1735172014626,0.13718329,99847.0,99841.0,0.07323879]
[1735172014627,8.58e-05,99878.0,99862.0,0.11891914]
[1735172014828,0.00024168,99878.0,99871.0,0.01891914]
[1735172015029,0.00024168,99878.0,99873.0,0.01891914]
[1735172015437,0.00024168,99878.0,99874.0,0.00445454]
[1735172016336,0.00028376,99878.0,99874.0,0.00445454]
[1735172016539,0.00028376,99878.0,99877.0,0.19215793]
[1735172016933,0.00028376,99878.0,99877.0,0.19669557]
[1735172017151,0.16017,99894.0,99883.0,0.1]
[1735172017351,0.00060528,99890.0,99884.0,0.01891914]
[1735172017555,0.00060528,99890.0,99884.0,0.02337973]
[1735172017816,0.01145835,99890.0,99884.0,0.02337973]
[1735172018159,0.160181,99887.0,99884.0,0.02337973]
[1735172018331,0.160181,99887.0,99885.0,0.01891914]
[1735172019324,0.160181,99887.0,99886.0,0.01891914]
[1735172020568,0.160181,99887.0,99885.0,0.003]
[1735172020973,0.160181,99887.0,99885.0,0.004]
[1735172021148,0.10398632,99886.0,99885.0,0.001]
[1735172021346,0.160193,99879.0,99878.0,0.01891914]
[1735172021573,0.41417932,99879.0,99878.0,0.01891914]
[1735172022119,0.160237,99852.0,99851.0,0.03]
[1735172022527,0.160237,99852.0,99851.0,0.03441552]
[1735172022730,0.160237,99852.0,99851.0,0.03]
[1735172023348,0.160237,99852.0,99851.0,0.03015588]
[1735172023552,0.160237,99852.0,99851.0,0.00015588]
[1735172024014,0.160237,99852.0,99851.0,0.00115588]
[1735172024384,0.160237,99852.0,99851.0,0.00015588]
[1735172024801,0.161237,99852.0,99851.0,0.00015588]
[1735172025185,0.160237,99852.0,99851.0,0.00015588]
[1735172025569,0.17491018,99852.0,99851.0,0.00015588]
[1735172026236,0.19473309,99852.0,99851.0,0.00015588]
[1735172026629,0.19373309,99852.0,99851.0,0.00015588]
[1735172027053,0.19473309,99852.0,99851.0,0.00015588]
[1735172027287,0.17491018,99852.0,99851.0,0.00015588]
[1735172027492,0.17391018,99852.0,99851.0,0.00015588]
[1735172027640,0.17591018,99852.0,99851.0,0.00015588]
[1735172028217,0.17391018,99852.0,99851.0,0.00015588]
[1735172028560,0.17491018,99852.0,99851.0,0.00015588]
[1735172029824,0.17391018,99852.0,99851.0,0.00015588]
[1735172030036,0.17491018,99852.0,99851.0,0.00015588]
[1735172030448,0.17391018,99852.0,99851.0,0.00015588]
[1735172030872,0.17591018,99852.0,99851.0,0.00015588]
[1735172032723,0.2798965,99852.0,99851.0,0.00015588]
[1735172034935,0.17591018,99852.0,99851.0,0.00015588]
[1735172035312,0.17591018,99852.0,99851.0,0.00032748]
[1735172036984,0.2798965,99852.0,99851.0,0.00032748]
[1735172040740,0.2798965,99852.0,99826.0,0.07323879]
[1735172040741,0.023,99844.0,99841.0,0.03]
[1735172040989,0.160283,99823.0,99822.0,0.00032736]
[1735172041208,0.26426932,99823.0,99822.0,0.00032736]
[1735172042027,0.160323,99798.0,99796.0,0.08856228]
[1735172042264,0.41430932,99798.0,99796.0,0.08856228]
[1735172042505,0.15,99797.0,99796.0,0.06462208]
[1735172042714,0.27698632,99797.0,99796.0,0.06462208]
[1735172043141,0.25398632,99797.0,99796.0,0.06462208]
[1735172043559,0.25398632,99797.0,99781.0,0.075]
[1735172043779,0.160349,99782.0,99781.0,0.07515663]
[1735172043979,0.160349,99782.0,99781.0,0.00015663]
[1735172044615,0.26433532,99782.0,99781.0,0.00015663]
[1735172045491,0.43733532,99782.0,99781.0,0.00015663]
[1735172045700,0.16038,99763.0,99762.0,0.0001718]
[1735172045914,0.26452185,99763.0,99762.0,0.0001718]
[1735172046797,0.16053553,99763.0,99762.0,0.0001718]
[1735172047434,0.16153553,99763.0,99762.0,0.0001718]
[1735172047997,0.16253553,99763.0,99762.0,0.0001718]
[1735172048194,0.26652185,99763.0,99762.0,0.0001718]
[1735172048399,0.16253553,99763.0,99762.0,0.0001718]
[1735172048601,0.00215553,99763.0,99762.0,0.0001718]
[1735172051647,0.10614185,99763.0,99762.0,0.0001718]
[1735172055450,0.14895199,99763.0,99762.0,0.0001718]
[1735172056078,0.173,99762.0,99755.0,0.0001714]
[1735172056278,0.023,99752.0,99751.0,0.0001716]
[1735172056460,0.30374753,99752.0,99751.0,0.0001716]
[1735172056664,0.38759078,99752.0,99751.0,0.0001716]
[1735172056857,0.30374753,99752.0,99751.0,0.0001716]
[1735172058179,0.30574753,99752.0,99751.0,0.0001716]
[1735172058740,0.30874753,99752.0,99751.0,0.0001716]
[1735172061774,0.32120407,99752.0,99751.0,0.0001716]
[1735172062416,0.02676121,99749.0,99748.0,0.0001716]
[1735172062617,0.15374753,99749.0,99748.0,0.0001716]
[1735172062795,0.30374753,99749.0,99748.0,0.0001716]
[1735172064093,0.30574753,99749.0,99748.0,0.0001716]
[1735172064298,0.30774753,99749.0,99748.0,0.0001716]
[1735172064800,0.28098632,99749.0,99748.0,0.0001716]
[1735172065054,0.30774753,99749.0,99748.0,0.0001716]
[1735172065266,0.10798632,99749.0,99748.0,0.0001716]
[1735172065475,0.004,99749.0,99748.0,0.0001716]
[1735172065864,0.004,99749.0,99748.0,0.0048251]
[1735172066073,0.002,99749.0,99748.0,0.1846251]
[1735172066709,0.160382,99762.0,99748.0,0.1846251]
[1735172066916,0.160384,99760.0,99750.0,0.09464767]
[1735172067234,0.160384,99760.0,99751.0,0.00465259]
[1735172067985,0.320769,99760.0,99751.0,0.00465259]
[1735172068405,0.160394,99755.0,99751.0,0.00465259]
[1735172068614,0.160394,99755.0,99751.0,0.00565259]
[1735172069051,0.160394,99754.0,99751.0,0.00565259]
[1735172069393,0.26438032,99754.0,99751.0,0.00565259]
[1735172069600,0.42477432,99754.0,99751.0,0.00565259]
[1735172069806,0.26438032,99754.0,99748.0,0.0001716]
[1735172069982,0.160402,99749.0,99748.0,0.0001716]
[1735172070134,0.26438832,99749.0,99748.0,0.0001716]
[1735172070548,0.26388832,99749.0,99748.0,0.0001716]
[1735172071658,0.28688832,99749.0,99748.0,0.0001716]
[1735172071867,0.28788832,99749.0,99748.0,0.0001716]
[1735172072494,0.28888832,99749.0,99748.0,0.0001716]
[1735172072896,0.28688832,99749.0,99748.0,0.0001716]
[1735172073124,0.28788832,99749.0,99748.0,0.0001716]
[1735172073355,0.28888832,99749.0,99748.0,0.0001716]
[1735172073563,0.28788832,99749.0,99748.0,0.0001716]
[1735172073804,0.28888832,99749.0,99748.0,0.0001716]
[1735172074174,0.26588832,99749.0,99748.0,0.0001716]
[1735172074374,0.17441666,99749.0,99748.0,0.1267716]
[1735172074577,0.17441666,99749.0,99748.0,0.13141545]
[1735172074946,0.01351466,99749.0,99748.0,0.13141545]
[1735172075231,0.01451466,99749.0,99748.0,0.13141545]
[1735172075440,0.002,99749.0,99748.0,0.23141545]
[1735172075944,0.001,99749.0,99748.0,0.23141545]
[1735172076144,0.1604789,99755.0,99748.0,0.23241545]
[1735172076662,0.1604789,99755.0,99748.0,0.23141545]
[1735172076922,0.1604789,99755.0,99748.0,0.23341545]
[1735172077302,8.59e-05,99755.0,99748.0,0.23141545]
[1735172077511,8.59e-05,99755.0,99748.0,0.23541545]
[1735172077715,8.59e-05,99755.0,99748.0,0.23641545]
[1735172078132,0.160394,99754.0,99748.0,0.23641545]
[1735172078299,8.59e-05,99755.0,99748.0,0.23541545]
[1735172078505,0.160394,99754.0,99748.0,0.23541545]
[1735172079172,8.59e-05,99755.0,99748.0,0.23141545]
[1735172079596,0.160394,99754.0,99748.0,0.23241545]
[1735172079740,0.160394,99754.0,99748.0,0.23141545]
[1735172080146,0.160394,99754.0,99748.0,0.23241545]
[1735172083241,0.1604798,99754.0,99748.0,0.23241545]
[1735172084664,8.58e-05,99754.0,99748.0,0.23241545]
[1735172087060,0.160396,99753.0,99748.0,0.23241545]
[1735172087910,0.160396,99753.0,99748.0,0.23141545]
[1735172088452,0.10398632,99752.0,99748.0,0.08291545]
[1735172088603,0.160399,99751.0,99748.0,0.00481545]
[1735172088805,0.160402,99749.0,99748.0,0.0001716]
[1735172089009,0.26438832,99749.0,99748.0,0.0001716]
[1735172089456,0.26438832,99749.0,99748.0,0.0011716]
[1735172089572,0.26438832,99749.0,99748.0,0.0001716]
[1735172089781,0.26438832,99749.0,99748.0,0.0021716]
[1735172090181,0.26438832,99749.0,99748.0,0.0001716]
[1735172090448,0.26438832,99749.0,99748.0,0.0021716]
[1735172090699,0.26438832,99749.0,99748.0,0.0001716]
[1735172091231,0.26438832,99749.0,99748.0,0.0021716]
[1735172091468,0.160399,99751.0,99748.0,0.0021716]
[1735172091707,0.10398632,99750.0,99748.0,0.00778184]
[1735172091904,0.10398632,99750.0,99748.0,0.0031716]
[1735172092107,0.10398632,99750.0,99749.0,0.00460994]
[1735172092455,0.160402,99749.0,99748.0,0.0031716]
[1735172092895,0.160402,99749.0,99748.0,0.0011716]
[1735172093492,0.160402,99749.0,99748.0,0.0001716]
[1735172093656,0.160402,99749.0,99748.0,0.0021716]
[1735172093854,0.26438832,99749.0,99748.0,0.0021716]
[1735172095128,0.28738832,99749.0,99748.0,0.0011716]
[1735172095514,0.28738832,99749.0,99748.0,0.0031716]
[1735172095718,0.28738832,99749.0,99748.0,0.0021716]
[1735172095914,0.28738832,99749.0,99748.0,0.0001716]
[1735172096773,0.28938832,99749.0,99748.0,0.0001716]
[1735172097566,0.29138832,99749.0,99748.0,0.0001716]
[1735172097947,0.26838832,99749.0,99748.0,0.0001716]
[1735172098765,0.26638832,99749.0,99748.0,0.0001716]
[1735172099012,0.28838832,99749.0,99748.0,0.0001716]
[1735172099225,0.29038832,99749.0,99748.0,0.0001716]
[1735172100236,0.28938832,99749.0,99748.0,0.0001716]
[1735172100874,0.29138832,99749.0,99748.0,0.0001716]
[1735172101049,0.28938832,99749.0,99748.0,0.0001716]
[1735172101395,0.29038832,99749.0,99748.0,0.0001716]
[1735172102018,0.28738832,99749.0,99748.0,0.0001716]
[1735172102448,0.28938832,99749.0,99748.0,0.0001716]
[1735172102656,0.28738832,99749.0,99748.0,0.0001716]
[1735172103123,0.28838832,99749.0,99748.0,0.0001716]
[1735172103472,0.28938832,99749.0,99748.0,0.0001716]
[1735172103681,0.26538832,99749.0,99748.0,0.0001716]
[1735172103922,0.26438832,99749.0,99748.0,0.0001716]
[1735172104191,0.26638832,99749.0,99748.0,0.0001716]
[1735172104383,0.41738832,99749.0,99748.0,0.0001716]
[1735172104615,0.173,99746.0,99722.0,0.0805]
[1735172104814,0.160444,99723.0,99722.0,0.0805]
[1735172105019,0.26443032,99723.0,99722.0,0.0805]
[1735172105982,0.002,99749.0,99722.0,0.0805]
[1735172105983,0.001,99749.0,99728.0,0.160436]
[1735172106213,0.13476564,99748.0,99747.0,0.41384379]
[1735172106468,0.10840867,99750.0,99747.0,0.51783011]
[1735172106667,0.22469521,99753.0,99752.0,0.42323879]
[1735172106886,0.09659521,99753.0,99752.0,0.67592511]
[1735172107101,0.08994434,99780.0,99779.0,0.1]
[1735172107304,0.08994434,99780.0,99779.0,0.259804]
[1735172107507,0.08994434,99780.0,99779.0,0.26464259]
[1735172107729,0.08994434,99780.0,99779.0,0.10428859]
[1735172108335,0.08994434,99780.0,99779.0,0.10528859]
[1735172108582,0.09010022,99780.0,99779.0,0.10528859]
[1735172108750,0.00015588,99780.0,99779.0,0.10528859]
[1735172109554,0.00015588,99780.0,99779.0,0.10828859]
[1735172109752,0.00015588,99780.0,99779.0,0.10428859]
[1735172109956,0.00015588,99780.0,99779.0,0.10528859]
[1735172110221,0.00015588,99780.0,99779.0,0.11328859]
[1735172111116,0.00015588,99780.0,99779.0,0.10428859]
[1735172111270,0.00015588,99780.0,99779.0,0.10528859]
[1735172112970,0.00015588,99780.0,99779.0,0.10928859]
[1735172113180,0.00015588,99780.0,99779.0,0.10528859]
[1735172113386,0.00015588,99780.0,99779.0,0.00583859]
[1735172113589,0.00015588,99780.0,99779.0,0.10928859]
[1735172113928,0.00015588,99780.0,99779.0,0.00983859]
[1735172114126,0.00015588,99780.0,99779.0,0.00583859]
[1735172114444,0.16050788,99780.0,99779.0,0.00783859]
[1735172115051,0.16050788,99780.0,99779.0,0.003]
[1735172115255,0.16050788,99780.0,99779.0,0.00762479]
[1735172115588,0.16050788,99780.0,99779.0,0.00862479]
[1735172115751,0.16050788,99780.0,99779.0,0.00562479]
[1735172116087,0.2644942,99780.0,99779.0,0.00862479]
[1735172116238,0.2644942,99780.0,99779.0,0.004]
[1735172116450,0.160354,99779.0,99763.0,0.09945]
[1735172116658,0.10398632,99778.0,99770.0,0.09464767]
[1735172117271,0.160377,99765.0,99760.0,0.09464767]
[1735172117472,0.160377,99765.0,99752.0,0.08806682]
[1735172117473,0.160385,99760.0,99757.0,0.09945]
[1735172117679,0.160385,99760.0,99752.0,0.16130561]
[1735172117680,0.10398632,99760.0,99752.0,0.08806682]
[1735172117888,0.10398632,99759.0,99752.0,0.08806682]
[1735172118066,0.160394,99754.0,99750.0,0.09464767]
[1735172118289,0.160394,99754.0,99751.0,0.09945]
[1735172118743,0.160394,99754.0,99750.0,0.09464767]
[1735172118953,0.42477632,99754.0,99748.0,0.0001716]
[1735172120229,0.42477632,99754.0,99750.0,0.001]
[1735172120611,0.160396,99753.0,99748.0,0.0001716]
[1735172120869,0.160396,99753.0,99749.0,0.0038518]
[1735172121076,0.26438232,99753.0,99748.0,0.0001716]
[1735172121281,0.26438232,99753.0,99750.0,0.00385305]
[1735172121282,0.10398632,99752.0,99750.0,0.00385305]
[1735172121461,0.10398632,99752.0,99748.0,0.0051716]
[1735172121688,0.160399,99751.0,99748.0,0.0051716]
[1735172121838,0.160402,99749.0,99748.0,0.0051716]
[1735172122070,0.160402,99749.0,99748.0,0.0071716]
[1735172122297,0.26438832,99749.0,99748.0,0.0071716]
[1735172122519,0.26438832,99749.0,99748.0,0.0001716]
[1735172122931,0.26438832,99749.0,99748.0,0.0051716]
[1735172123133,0.26438832,99749.0,99748.0,0.00069408]
[1735172123134,0.46414953,99749.0,99748.0,0.00069408]
[1735172123511,0.46414953,99749.0,99748.0,0.00169408]
[1735172124050,0.46414953,99749.0,99748.0,0.00069408]
[1735172125137,0.46614953,99749.0,99748.0,0.00069408]
[1735172125546,0.46814953,99749.0,99748.0,0.00069408]
[1735172126201,0.41838832,99749.0,99748.0,0.00069408]
[1735172126408,0.26838832,99749.0,99748.0,0.00069408]
[1735172126636,0.44138832,99749.0,99748.0,0.00069408]
[1735172126857,0.55159953,99749.0,99748.0,0.00069408]
[1735172127288,0.63802815,99749.0,99748.0,0.00069408]
[1735172127970,0.63547815,99749.0,99748.0,0.00069408]
[1735172128174,0.54904953,99749.0,99748.0,0.00069408]
[1735172128345,0.54959953,99749.0,99748.0,0.00069408]
[1735172128503,0.55159953,99749.0,99748.0,0.00069408]
[1735172128705,0.15,99748.0,99730.0,0.09464767]
[1735172128912,0.160427,99734.0,99720.0,0.09464767]
[1735172129110,0.160429,99732.0,99731.0,0.00398098]
[1735172129312,0.160445,99723.0,99720.0,0.09464767]
[1735172129544,0.160445,99723.0,99722.0,0.09945]
[1735172129763,0.160439,99727.0,99722.0,0.17268879]
[1735172130007,0.01176099,99727.0,99723.0,0.09945]
[1735172130179,0.17676121,99757.0,99726.0,0.07323879]
[1735172130345,0.160424,99736.0,99731.0,0.003]
[1735172130561,0.320852,99734.0,99731.0,0.003]
[1735172130763,0.160429,99732.0,99731.0,0.003]
[1735172131783,0.01348902,99749.0,99745.0,0.07323879]
[1735172132001,0.0829,99777.0,99752.0,0.09945]
[1735172132212,0.10398632,99776.0,99762.0,0.09945]
[1735172132411,0.10398632,99776.0,99768.0,0.09945]
[1735172133150,0.10450622,99776.0,99768.0,0.09945]
[1735172133354,0.10450622,99776.0,99767.0,0.09464767]
[1735172133355,0.0015199,99776.0,99772.0,0.09945]
[1735172133559,0.0015199,99776.0,99775.0,0.09945]
[1735172133759,0.0005199,99776.0,99775.0,0.09945]
[1735172134007,0.0025199,99776.0,99775.0,0.09945]
[1735172134209,0.0035199,99776.0,99775.0,0.09945]
[1735172134415,0.0015199,99776.0,99775.0,0.09945]
[1735172134617,0.0005199,99776.0,99775.0,0.09945]
[1735172135002,0.0005199,99776.0,99775.0,0.10045]
[1735172135411,0.0005199,99776.0,99775.0,0.09945]
[1735172135609,0.0005199,99776.0,99775.0,0.00405796]
[1735172135610,0.10450622,99776.0,99775.0,0.00405796]
[1735172135855,0.10450622,99776.0,99775.0,0.00505796]
[1735172136039,0.10450622,99776.0,99775.0,0.004]
[1735172136245,0.0005199,99776.0,99775.0,0.004]
[1735172136418,0.0005199,99776.0,99775.0,0.10450796]
[1735172136625,0.0005199,99776.0,99775.0,0.10650796]
[1735172136823,0.0005199,99776.0,99775.0,0.10550796]
[1735172137037,0.0005199,99776.0,99775.0,0.00405796]
[1735172137266,0.0005199,99776.0,99775.0,0.002]
[1735172137474,0.10450622,99776.0,99775.0,0.00496224]
[1735172137611,0.160388,99758.0,99752.0,0.09945]
[1735172137810,0.10398632,99758.0,99753.0,0.00387316]
[1735172138130,0.10398632,99758.0,99755.0,0.07323879]
[1735172138529,0.10398632,99758.0,99756.0,0.00388595]
[1735172139726,0.160364,99773.0,99761.0,0.09945]
[1735172139929,0.160367,99771.0,99761.0,0.09945]
[1735172140135,0.10398632,99770.0,99762.0,0.00388414]
[1735172140544,0.10398632,99770.0,99762.0,0.10333414]
[1735172140745,0.160372,99768.0,99762.0,0.00388414]
[1735172141185,0.160372,99768.0,99759.0,0.09945]
[1735172141380,0.160372,99768.0,99756.0,0.07423879]
[1735172141381,0.160372,99768.0,99763.0,0.00388384]
[1735172141584,0.160372,99768.0,99762.0,0.10245]
[1735172141913,0.160372,99768.0,99763.0,0.00388384]
[1735172143424,0.160375,99766.0,99763.0,0.00388384]
[1735172143559,0.26436132,99766.0,99763.0,0.00488384]
[1735172143763,0.26436132,99766.0,99763.0,0.001]
[1735172143963,0.26436132,99766.0,99764.0,0.00388354]
[1735172144625,0.26436132,99766.0,99763.0,0.005]
[1735172144809,0.26436132,99766.0,99765.0,0.00388324]
[1735172145012,0.26436132,99766.0,99764.0,0.00388354]
[1735172145216,0.26436132,99766.0,99765.0,0.00388324]
[1735172145943,0.26436132,99766.0,99763.0,0.005]
[1735172146188,0.26436132,99766.0,99765.0,0.00388324]
[1735172146407,0.26436132,99766.0,99764.0,0.00588354]
[1735172146608,0.26436132,99766.0,99765.0,0.00388324]
[1735172147037,0.27559968,99766.0,99765.0,0.00388324]
[1735172147443,0.27559968,99766.0,99763.0,0.004]
[1735172147444,0.43597468,99766.0,99763.0,0.004]
[1735172147635,0.27559968,99766.0,99765.0,0.00391322]
[1735172147845,0.27559968,99766.0,99765.0,0.004]
[1735172148004,0.27559968,99766.0,99765.0,0.00491322]
[1735172148520,0.11522468,99766.0,99765.0,0.00691322]
[1735172148724,0.11522468,99766.0,99765.0,0.003]
[1735172149369,0.10398632,99766.0,99765.0,0.002]
[1735172149786,0.160376,99765.0,99763.0,0.001]
[1735172150217,0.160376,99765.0,99759.0,0.09945]
[1735172150430,0.320752,99765.0,99759.0,0.09945]
[1735172150633,0.320752,99765.0,99760.0,0.00391473]
[1735172150848,0.320752,99765.0,99759.0,0.09945]
[1735172153095,0.160376,99765.0,99759.0,0.09945]
[1735172153330,0.160376,99765.0,99759.0,0.10045]
[1735172153535,0.160376,99765.0,99760.0,0.00391473]
[1735172153883,0.160376,99765.0,99760.0,0.00491473]
[1735172154090,0.160376,99765.0,99760.0,0.00391473]
[1735172155571,0.01132013,99766.0,99763.0,0.09945]
[1735172155776,0.01132013,99766.0,99765.0,0.09945]
[1735172156149,0.01132013,99766.0,99765.0,0.10336322]
[1735172156353,8.58e-05,99766.0,99765.0,0.10336322]
[1735172157134,8.58e-05,99766.0,99765.0,0.10936322]
[1735172157424,8.58e-05,99766.0,99765.0,0.10336322]
[1735172157817,8.58e-05,99766.0,99765.0,0.10536322]
[1735172159025,8.58e-05,99766.0,99765.0,0.10336322]
[1735172159223,8.58e-05,99766.0,99765.0,0.10436322]
[1735172159427,8.58e-05,99766.0,99765.0,0.10336322]
[1735172159847,8.58e-05,99766.0,99765.0,0.10536322]
[1735172160010,8.58e-05,99766.0,99765.0,0.10336322]
[1735172160215,8.58e-05,99766.0,99765.0,0.10536322]
[1735172160613,8.58e-05,99766.0,99765.0,0.10636322]
[1735172160818,8.58e-05,99766.0,99765.0,0.10436322]
[1735172161969,8.58e-05,99766.0,99765.0,0.10536322]
[1735172162171,8.58e-05,99766.0,99765.0,0.10636322]
[1735172162352,8.58e-05,99766.0,99765.0,0.10436322]
[1735172162553,8.58e-05,99766.0,99765.0,0.10536322]
[1735172162761,8.58e-05,99766.0,99765.0,0.10436322]
[1735172162966,0.10407212,99766.0,99765.0,0.00491322]
[1735172163169,0.20837212,99766.0,99765.0,0.00491322]
[1735172163395,0.18537212,99766.0,99765.0,0.001]
[1735172163809,0.18537212,99766.0,99748.0,0.0996216]
[1735172164012,0.160398,99752.0,99748.0,0.0996216]
[1735172164211,0.160398,99752.0,99749.0,0.00393185]
[1735172164588,0.160398,99752.0,99748.0,0.0001716]
[1735172164589,0.160422,99737.0,99734.0,0.08806682]
[1735172164818,0.241725,99735.0,99734.0,0.08806682]
[1735172164990,0.36871132,99735.0,99734.0,0.08806682]
[1735172165390,0.160439,99726.0,99725.0,0.08806682]
[1735172165566,0.26442532,99726.0,99725.0,0.08806682]
[1735172165762,0.26442532,99726.0,99725.0,0.09181177]
[1735172166619,0.26442532,99726.0,99725.0,0.00374495]
[1735172166824,0.26442532,99726.0,99725.0,0.0021555]
[1735172167311,0.26442532,99726.0,99725.0,0.0001555]
[1735172167512,0.26442532,99726.0,99725.0,0.0011555]
[1735172168785,0.160426,99734.0,99725.0,0.0001555]
[1735172168989,0.001,99726.0,99725.0,0.1016055]
[1735172169187,0.001,99726.0,99725.0,0.17484429]
[1735172169390,0.001,99726.0,99725.0,0.17284429]
[1735172169571,0.002,99726.0,99725.0,0.17284429]
[1735172169774,0.001,99726.0,99725.0,0.17284429]
[1735172170177,0.10398632,99734.0,99730.0,0.07323879]
[1735172170562,0.01121819,99735.0,99725.0,0.0011555]
[1735172170563,0.01121819,99735.0,99734.0,0.17268879]
[1735172170764,0.22580777,99763.0,99734.0,0.17268879]
[1735172170765,0.02055271,99772.0,99760.0,0.09945]
[1735172170979,0.01096109,99770.0,99761.0,0.09945]
[1735172171204,0.0759,99773.0,99761.0,0.09945]
[1735172171774,8.58e-05,99776.0,99765.0,0.17268879]
[1735172172051,0.0006057,99766.0,99765.0,0.17268879]
[1735172173115,0.0016057,99766.0,99765.0,0.17268879]
[1735172173315,0.0006057,99766.0,99765.0,0.17268879]
[1735172173745,0.0006057,99766.0,99765.0,0.17368879]
[1735172174913,0.0016057,99766.0,99765.0,0.17368879]
[1735172175445,0.0006057,99766.0,99765.0,0.17368879]
[1735172176472,0.0006057,99766.0,99765.0,0.17268879]
[1735172176764,0.0006057,99766.0,99765.0,0.17654181]
[1735172179455,0.0006057,99766.0,99765.0,0.17754403]
[1735172181357,0.0006057,99766.0,99765.0,0.47823035]
[1735172181543,0.0006057,99766.0,99765.0,0.47722813]
[1735172181939,0.0006057,99766.0,99765.0,0.47622813]
[1735172182307,0.0006057,99766.0,99765.0,0.58522813]
[1735172182524,0.0006057,99766.0,99765.0,0.58222813]
[1735172183071,0.0006057,99766.0,99765.0,0.59122813]
[1735172183476,0.0006057,99766.0,99765.0,0.58222813]
[1735172183879,0.0006057,99766.0,99765.0,0.47622813]
[1735172184088,0.0006057,99766.0,99765.0,0.48222813]
[1735172184427,0.0006057,99766.0,99765.0,0.58222813]
[1735172184634,0.0006057,99766.0,99765.0,0.57622813]
[1735172184831,0.0006057,99766.0,99765.0,0.58522813]
[1735172185045,0.0006057,99766.0,99765.0,0.58222813]
[1735172185444,0.0006057,99766.0,99765.0,0.59122813]
[1735172185662,0.0006057,99766.0,99765.0,0.58222813]
[1735172185849,0.0006057,99766.0,99765.0,0.57622813]
[1735172186075,0.0006057,99766.0,99765.0,0.58522813]
[1735172186189,0.0006057,99766.0,99765.0,0.57622813]
[1735172186593,0.0006057,99766.0,99765.0,0.58522813]
[1735172186989,0.0006057,99766.0,99765.0,0.59222813]
[1735172188359,0.0006057,99766.0,99765.0,0.71522813]
[1735172192285,7e-07,99766.0,99765.0,0.71522813]
[1735172192526,7e-07,99766.0,99765.0,1.68263701]